bitfinex-derivatives/quotes_ETHF0:USTF0_20250501
["timestamp","ask_amount","ask_price","bid_price","bid_amount"]
[1746107604466,5.93027,1836.3,1835.6,5.93128]
[1746107604668,1.08914,1836.1,1835.9,1.08922]
[1746107604870,3.3423,1836.0,1835.9,1.08922]
[1746107605265,3.2078,1836.5,1836.0,2.72288]
[1746107605472,3.2078,1836.5,1836.4,1.08892]
[1746107605677,4.43116,1836.5,1836.4,1.08892]
[1746107605868,3.3423,1836.5,1836.4,1.08892]
[1746107606577,4.43119,1836.5,1836.3,1.08896]
[1746107606965,4.43119,1836.5,1835.9,2.72293]
[1746107607171,3.2078,1835.5,1835.1,3.2078]
[1746107607373,5.93087,1835.9,1835.1,3.2078]
[1746107607577,1.08943,1835.6,1835.1,6.6035]
[1746107607775,1.08943,1835.6,1835.4,1.08951]
[1746107607976,3.2078,1835.7,1835.3,3.2078]
[1746107608176,1.08979,1835.0,1834.9,3.2078]
[1746107608377,1.08979,1835.0,1834.9,6.4374]
[1746107608881,2.72457,1834.9,1834.5,6.5597]
[1746107609079,1.08999,1834.6,1834.5,9.7893]
[1746107609484,3.3289,1834.9,1834.5,50.5893]
[1746107609681,4.41876,1834.9,1834.7,1.0899]
[1746107609980,4.41876,1834.9,1834.8,1.08987]
[1746107609981,3.3289,1834.9,1834.8,1.08987]
[1746107610282,3.3289,1834.9,1834.8,4.31947]
[1746107610477,3.3289,1835.3,1834.9,1.08978]
[1746107610675,1.08975,1835.0,1834.9,4.34068]
[1746107610870,1.08975,1835.0,1834.9,3.2509]
[1746107611090,1.08986,1834.9,1834.7,7.4414]
[1746107611291,1.08987,1834.8,1834.7,3.2509]
[1746107611484,4.39567,1834.8,1834.7,3.2509]
[1746107611991,4.39567,1834.8,1834.7,6.4587]
[1746107612491,4.39567,1834.8,1834.7,3.2509]
[1746107612679,4.39567,1834.8,1834.7,6.4587]
[1746107613691,1.08993,1834.7,1834.5,45.2419]
[1746107613888,1.08999,1834.6,1834.5,40.8]
[1746107614388,1.09028,1834.1,1834.0,3.2078]
[1746107614590,3.4478,1834.5,1834.0,4.33743]
[1746107614893,1.09023,1834.2,1834.1,40.8]
[1746107615396,1.09019,1834.3,1834.1,40.8]
[1746107615588,1.09014,1834.4,1834.1,40.8]
[1746107615795,1.09014,1834.4,1834.2,4.3373]
[1746107616093,4.53788,1834.5,1834.3,1.09015]
[1746107616291,3.4478,1834.5,1834.4,3.2471]
[1746107616490,3.4478,1834.5,1834.4,4.33721]
[1746107616691,4.53785,1834.5,1834.4,3.2471]
[1746107616991,6.17297,1834.5,1834.1,40.8]
[1746107617194,1.09023,1834.2,1834.1,40.8]
[1746107617897,1.09023,1834.2,1834.1,41.89028]
[1746107618095,3.4086,1834.3,1834.1,41.89028]
[1746107618290,3.2078,1834.6,1834.1,40.8]
[1746107618491,1.09012,1834.4,1834.2,7.52748]
[1746107618888,1.09017,1834.3,1834.2,6.4373]
[1746107619597,3.4086,1834.5,1834.2,6.4373]
[1746107619792,1.09017,1834.3,1834.2,3.2078]
[1746107620497,1.09017,1834.3,1834.2,4.29803]
[1746107620691,4.49868,1834.5,1834.4,1.09011]
[1746107620888,1.09008,1834.5,1834.4,1.09011]
[1746107621291,1.09007,1834.5,1834.4,1.0901]
[1746107621594,1.09006,1834.5,1834.4,1.09007]
[1746107621794,1.09015,1834.4,1834.2,7.77491]
[1746107621992,2.72498,1834.6,1834.2,7.77491]
[1746107622193,1.09017,1834.3,1834.2,3.2078]
[1746107622489,1.09017,1834.3,1833.4,4.698]
[1746107622490,1.09052,1833.7,1833.4,4.698]
[1746107622692,4.2983,1833.8,1833.6,4.26368]
[1746107622997,4.2983,1833.8,1833.7,3.3111]
[1746107623297,4.2983,1833.8,1833.7,4.40162]
[1746107623491,1.0905,1833.8,1833.7,3.3111]
[1746107623997,1.0905,1833.8,1833.7,4.40162]
[1746107624192,3.1627,1833.9,1833.7,3.3111]
[1746107624400,1.09045,1833.9,1833.8,1.09046]
[1746107624697,1.09046,1833.8,1833.7,3.3111]
[1746107625295,1.09046,1833.8,1833.7,4.40162]
[1746107625495,1.09046,1833.8,1833.7,3.3111]
[1746107625685,1.09043,1833.9,1833.7,3.3111]
[1746107625886,9.09432,1834.1,1833.7,3.3111]
[1746107626086,1.09046,1833.8,1833.7,3.3111]
[1746107626691,4.25126,1833.8,1833.7,3.3111]
[1746107626896,1.09046,1833.8,1833.7,3.3111]
[1746107627692,1.09058,1833.6,1833.5,40.8]
[1746107627997,4.29838,1833.6,1833.5,40.8]
[1746107628393,3.2078,1833.6,1833.5,41.89064]
[1746107628692,1.09058,1833.6,1833.5,40.8]
[1746107629499,1.0907,1833.4,1833.3,3.3874]
[1746107630093,1.0907,1833.4,1833.3,44.1874]
[1746107630297,6.5576,1833.5,1833.3,44.1874]
[1746107630488,4.29848,1833.5,1833.4,3.2354]
[1746107630992,3.2078,1833.5,1833.4,4.3261]
[1746107631202,4.29844,1833.5,1833.4,3.2354]
[1746107631799,1.09062,1833.6,1833.4,3.2354]
[1746107632002,1.09064,1833.5,1833.4,6.6721]
[1746107632198,1.09063,1833.6,1833.4,6.6721]
[1746107632505,1.09063,1833.6,1833.5,3.4784]
[1746107632695,1.09057,1833.7,1833.5,8.0462]
[1746107633002,1.0905,1833.8,1833.7,1.09052]
[1746107633202,3.2078,1833.9,1833.5,10.1634]
[1746107633395,1.09055,1833.7,1833.5,11.25401]
[1746107633595,1.0905,1833.8,1833.6,1.09056]
[1746107633893,1.09058,1833.6,1833.5,3.4784]
[1746107634099,1.09064,1833.5,1833.4,6.9139]
[1746107634406,1.0907,1833.4,1833.3,40.8]
[1746107634703,1.0907,1833.4,1833.0,4.29869]
[1746107634704,1.09088,1833.1,1833.0,3.4772]
[1746107635205,1.09088,1833.1,1833.0,44.2772]
[1746107635801,1.09086,1833.2,1833.0,45.36814]
[1746107635999,1.09084,1833.2,1833.1,1.09087]
[1746107636302,1.09084,1833.2,1833.0,45.3681]
[1746107636703,1.09088,1833.1,1833.0,44.2772]
[1746107637001,1.09087,1833.2,1833.0,45.36813]
[1746107637202,1.09087,1833.2,1833.0,44.2772]
[1746107637403,3.5581,1833.3,1833.1,1.09086]
[1746107637707,1.09075,1833.4,1833.3,1.09076]
[1746107637894,6.6706,1833.5,1833.3,1.09076]
[1746107638098,7.76129,1833.5,1833.3,1.09076]
[1746107638301,7.76129,1833.5,1833.4,3.5749]
[1746107638504,4.55349,1833.5,1833.4,3.5749]
[1746107639002,1.09076,1833.3,1833.2,3.3758]
[1746107639198,1.09076,1833.3,1833.2,6.9507]
[1746107639505,1.09082,1833.2,1833.1,4.63836]
[1746107639706,1.09088,1833.1,1833.0,40.8]
[1746107640007,1.09088,1833.1,1832.6,7.42788]
[1746107640008,1.09128,1832.5,1832.3,1.09131]
[1746107640305,3.2078,1832.5,1832.4,4.6662]
[1746107640500,3.2078,1832.5,1832.4,45.4662]
[1746107641708,3.2078,1832.8,1832.6,1.09113]
[1746107641908,3.3855,1833.0,1832.7,3.3819]
[1746107642108,1.09094,1833.0,1832.8,1.09101]
[1746107642305,4.47637,1833.2,1832.9,4.47289]
[1746107642511,4.29874,1833.0,1832.9,3.3819]
[1746107643107,3.2078,1833.0,1832.9,4.4729]
[1746107643307,4.29874,1833.0,1832.9,3.3819]
[1746107643509,3.2078,1833.0,1832.9,4.4729]
[1746107643710,3.2078,1833.0,1832.9,3.3819]
[1746107643910,4.29874,1833.0,1832.9,3.3819]
[1746107644212,4.29874,1833.0,1832.9,4.4729]
[1746107644213,3.2078,1833.0,1832.9,4.4729]
[1746107644915,3.3855,1833.2,1832.9,3.3819]
[1746107645101,1.09094,1833.0,1832.6,7.9098]
[1746107645306,3.422,1832.9,1832.8,1.09105]
[1746107645507,3.422,1832.9,1832.7,3.4858]
[1746107645712,4.51304,1832.9,1832.7,4.57689]
[1746107646006,1.09115,1832.7,1832.5,7.93408481]
[1746107646208,3.422,1832.9,1832.5,3.43730481]
[1746107646406,3.422,1832.6,1832.5,0.00490481]
[1746107646611,3.422,1832.6,1832.5,4.58194481]
[1746107646812,4.29888,1832.8,1832.6,1.09118]
[1746107647014,7.78718,1832.8,1832.6,1.09118]
[1746107647210,7.78718,1832.8,1832.7,4.64732]
[1746107647411,6.6961,1832.8,1832.7,4.64732]
[1746107648116,3.2078,1832.8,1832.7,4.64732]
[1746107648413,4.29886,1832.8,1832.7,4.64732]
[1746107648713,5.93489,1833.2,1832.9,1.09099]
[1746107648912,3.4883,1833.0,1832.7,3.5562]
[1746107649210,6.6961,1833.0,1832.7,1.09109]
[1746107649514,1.091,1832.9,1832.8,1.09106]
[1746107649715,1.09115,1832.7,1832.5,4.46110481]
[1746107649916,4.57948,1832.6,1832.5,0.00490481]
[1746107650108,4.57948,1832.6,1832.5,40.80490481]
[1746107650513,4.57948,1832.6,1832.5,0.00490481]
[1746107651112,3.2078,1832.7,1832.5,40.80490481]
[1746107651408,1.09118,1832.6,1832.5,41.89614481]
[1746107651608,4.64538,1832.6,1832.5,40.80490481]
[1746107652314,4.64538,1832.6,1832.5,41.89614481]
[1746107652717,4.64538,1832.6,1832.5,40.80490481]
[1746107652919,4.64538,1832.6,1832.5,41.89614481]
[1746107653212,3.5542,1832.6,1832.5,41.89614481]
[1746107653516,4.64538,1832.6,1832.5,41.89614481]
[1746107653718,1.09108,1832.8,1832.7,1.09109]
[1746107653909,7.59034,1832.9,1832.8,1.09106]
[1746107654111,7.59034,1832.9,1832.7,1.09107]
[1746107654315,7.59034,1832.9,1832.8,3.2519]
[1746107654710,7.59034,1832.9,1832.8,4.34296]
[1746107655019,7.59034,1832.9,1832.8,3.2519]
[1746107655514,1.09118,1832.6,1832.5,40.80490481]
[1746107655714,4.29898,1832.6,1832.5,0.00490481]
[1746107656114,1.09118,1832.6,1832.5,0.00490481]
[1746107656315,9.29898,1832.6,1832.5,4.81e-06]
[1746107656713,1.09169,1831.8,1831.7,1.09171]
[1746107656913,1.09169,1831.8,1831.7,41.89171]
[1746107657608,1.09169,1831.8,1831.7,40.8]
[1746107657813,4.29949,1831.8,1831.7,40.8]
[1746107658018,1.09169,1831.8,1831.7,40.8]
[1746107658610,1.09189,1831.4,1831.3,3.5014]
[1746107658915,3.2078,1831.5,1831.3,8.02812]
[1746107659111,2.72975,1831.4,1830.7,10.60756]
[1746107659318,1.09198,1831.3,1831.2,1.09201]
[1746107659524,3.2078,1831.5,1831.4,1.09189]
[1746107659722,1.09183,1831.5,1831.3,4.50541]
[1746107659923,1.09183,1831.5,1831.4,3.4135]
[1746107660718,1.09182,1831.6,1831.4,7.71319]
[1746107660917,3.2078,1831.8,1831.4,9.35102]
[1746107661219,3.2078,1831.8,1831.4,9.35103]
[1746107661413,6.5975,1832.0,1831.6,3.2078]
[1746107661725,4.29935,1832.0,1831.8,1.09161]
[1746107661926,4.29935,1832.0,1831.9,3.4135]
[1746107662514,1.09163,1831.9,1831.6,3.2078]
[1746107662718,1.09161,1831.9,1831.7,4.64868]
[1746107662927,4.29937,1832.0,1831.8,1.09164]
[1746107663126,4.29937,1832.0,1831.9,3.557]
[1746107663621,9.48421532,1832.3,1831.9,3.557]
[1746107663823,3.3163,1832.2,1831.9,3.557]
[1746107664031,1.09153,1832.0,1831.9,3.557]
[1746107664221,1.09171,1831.7,1831.6,10.1474]
[1746107664524,1.09171,1831.7,1831.6,10.4966]
[1746107664823,1.09189,1831.4,1831.3,4.669]
[1746107665026,1.09189,1831.4,1831.3,8.226]
[1746107665228,1.09189,1831.4,1831.3,3.557]
[1746107666827,1.09195,1831.3,1831.2,44.0078]
[1746107667130,1.09223,1830.9,1830.7,1.09227]
[1746107667338,1.09223,1830.9,1830.7,4.40927]
[1746107667924,1.09218,1831.0,1830.8,1.09225]
[1746107668123,1.09218,1831.0,1830.9,40.8]
[1746107668325,2.73081,1830.7,1830.2,3.2078]
[1746107668628,1.09242,1830.6,1830.4,3.4916]
[1746107668827,4.46272,1830.6,1830.5,40.8]
[1746107669329,2.73138,1830.3,1829.7,1.09288]
[1746107669528,1.09279,1829.9,1829.8,3.4916]
[1746107669726,6.5781,1830.2,1829.8,45.38443]
[1746107669927,1.09275,1830.0,1829.8,44.2916]
[1746107670122,1.09279,1829.9,1829.8,44.2916]
[1746107670322,1.09279,1829.9,1829.8,40.8]
[1746107670533,1.09277,1830.0,1829.8,40.8]
[1746107671033,3.3703,1830.2,1829.9,3.2078]
[1746107671231,3.2078,1830.3,1829.9,3.2078]
[1746107671426,4.52863,1830.4,1830.1,1.09264]
[1746107671732,3.4361,1830.4,1830.2,3.2078]
[1746107671935,1.09247,1830.5,1830.3,1.09255]
[1746107672134,1.09251,1830.4,1830.2,4.30037]
[1746107672435,1.09251,1830.4,1830.2,1.09258]
[1746107672622,1.09256,1830.3,1830.1,4.37332]
[1746107672831,3.4361,1830.6,1830.2,3.2078]
[1746107673031,4.52848,1830.6,1830.2,3.2078]
[1746107673231,1.09244,1830.5,1830.3,1.09252]
[1746107673534,1.09253,1830.4,1830.2,4.30039]
[1746107673737,1.09247,1830.5,1830.3,1.09254]
[1746107673933,1.09229,1830.8,1830.3,2.73136]
[1746107674130,3.2078,1830.9,1830.4,5.93894]
[1746107674432,3.2078,1830.9,1830.7,1.09226]
[1746107674636,3.2078,1830.9,1830.4,3.2078]
[1746107674934,6.4745,1830.9,1830.6,1.09234]
[1746107675130,4.35891,1830.9,1830.7,1.0923]
[1746107675331,2.73063,1830.8,1830.4,3.2078]
[1746107675533,3.2667,1830.7,1830.3,3.367]
[1746107675933,1.09242,1830.6,1830.3,4.4595]
[1746107676131,3.2667,1830.7,1830.3,3.367]
[1746107676340,1.0922,1830.9,1830.7,1.09225]
[1746107676931,5.99689,1831.1,1830.4,3.2078]
[1746107677129,1.09229,1830.8,1830.3,2.73137]
[1746107677332,1.09229,1830.8,1830.2,5.93921]
[1746107677333,3.2078,1830.6,1830.2,3.2078]
[1746107677634,1.09255,1830.3,1830.2,3.2078]
[1746107678039,3.4017,1830.5,1830.2,3.2078]
[1746107678235,3.2078,1830.6,1830.2,3.2078]
[1746107678539,4.30021,1830.6,1830.4,1.09243]
[1746107678735,3.2078,1830.9,1830.6,1.09237]
[1746107678941,9.34003,1830.9,1830.4,1.09245]
[1746107679139,1.09249,1830.4,1830.3,3.424]
[1746107679639,1.09249,1830.4,1830.3,4.51655]
[1746107679943,1.09247,1830.5,1830.3,4.51655]
[1746107680136,3.4017,1830.6,1830.4,1.09249]
[1746107680452,4.49411,1830.6,1830.4,1.09246]
[1746107680643,3.2078,1830.7,1830.6,1.09237]
[1746107680842,3.2078,1830.7,1830.5,1.09238]
[1746107680843,4.30013,1830.7,1830.5,1.09238]
[1746107681344,1.09228,1830.8,1830.6,1.09237]
[1746107681545,3.2078,1830.9,1830.8,1.09225]
[1746107682546,7.80901,1831.1,1830.9,1.09219]
[1746107682736,6.7169,1831.1,1830.9,1.09216]
[1746107682936,4.60119,1831.1,1830.8,3.2078]
[1746107683137,4.60119,1831.1,1830.9,1.09216]
[1746107683339,4.60119,1831.1,1831.0,40.8]
[1746107684239,7.80899,1831.1,1831.0,40.8]
[1746107684434,4.60119,1831.1,1831.0,40.8]
[1746107685439,4.29989,1831.1,1831.0,40.8]
[1746107685739,1.09209,1831.1,1831.0,40.8]
[1746107686344,1.09209,1831.1,1831.0,41.89213]
[1746107686745,1.09209,1831.1,1831.0,40.8]
[1746107687247,1.09209,1831.1,1831.0,41.89213]
[1746107687543,1.09209,1831.1,1831.0,40.8]
[1746107688149,4.29989,1831.1,1831.0,40.8]
[1746107688445,1.09209,1831.1,1831.0,40.8]
[1746107689046,4.29989,1831.1,1831.0,40.8]
[1746107690746,1.09219,1830.9,1830.8,1.09224]
[1746107690947,3.3587,1831.0,1830.6,3.2078]
[1746107691150,1.09227,1830.8,1830.7,41.89227]
[1746107692438,1.09227,1830.8,1830.7,41.89231]
[1746107693041,1.09227,1830.8,1830.7,40.8]
[1746107693246,4.30007,1830.8,1830.7,40.8]
[1746107694147,4.30007,1830.8,1830.7,41.89231]
[1746107694552,3.2078,1830.8,1830.7,40.8]
[1746107694951,4.30005,1830.8,1830.7,40.8]
[1746107695153,3.2078,1830.8,1830.7,40.8]
[1746107695354,4.30005,1830.8,1830.7,40.8]
[1746107695653,3.2078,1830.8,1830.7,40.8]
[1746107695848,4.30005,1830.8,1830.7,40.8]
[1746107696047,1.09225,1830.8,1830.7,40.8]
[1746107696641,6.5665,1831.0,1830.7,41.89229]
[1746107696951,1.09225,1830.8,1830.7,40.8]
[1746107697548,4.30005,1830.8,1830.7,40.8]
[1746107698749,3.2078,1830.8,1830.7,41.89231]
[1746107699051,6.5665,1831.0,1830.9,1.09219]
[1746107699252,3.2078,1831.0,1830.9,1.09219]
[1746107699749,3.2078,1831.0,1830.7,40.8]
[1746107699950,4.59581,1830.9,1830.7,41.89229]
[1746107700251,1.09247,1830.5,1830.3,11.4713]
[1746107700453,1.09255,1830.3,1830.2,0.02008]
[1746107700856,6.7114,1830.4,1830.3,1.09255]
[1746107701058,4.5961,1830.4,1830.2,41.91264]
[1746107701258,3.5036,1830.4,1830.3,1.09255]
[1746107701856,3.5036,1830.4,1830.2,40.82008]
[1746107702147,4.30023,1830.6,1830.2,40.82008]
[1746107702354,1.09255,1830.3,1830.2,40.82008]
[1746107702556,4.30035,1830.3,1830.2,40.82008]
[1746107702753,1.09255,1830.3,1830.2,40.82008]
[1746107703152,9.30035,1830.3,1830.2,0.02008]
[1746107703354,6.09255,1830.3,1830.2,0.02008]
[1746107703655,9.30035,1830.3,1830.2,0.02008]
[1746107703851,4.30035,1830.3,1830.2,0.02008]
[1746107704049,9.30035,1830.3,1830.2,0.02008]
[1746107704245,17.26565,1830.3,1830.2,0.02008]
[1746107706154,16.1731,1830.3,1828.9,3.2078]
[1746107706454,1.0931,1829.4,1829.2,1.09316]
[1746107706650,1.0931,1829.4,1829.3,40.8]
[1746107706851,3.2695,1829.4,1829.3,40.8]
[1746107707051,4.36259,1829.4,1829.3,40.8]
[1746107707253,1.09328,1829.1,1828.9,1.09336]
[1746107707658,1.09328,1829.1,1828.9,1.09334]
[1746107707856,3.2078,1829.2,1828.8,10.70672124]
[1746107708360,4.30105,1829.2,1829.0,1.09331]
[1746107708554,4.30105,1829.2,1828.9,4.42365]
[1746107708751,3.4833,1829.1,1828.9,4.42365]
[1746107708952,3.4833,1829.1,1828.8,4.60243]
[1746107709157,3.2078,1829.2,1828.9,3.3303]
[1746107709458,4.30103,1829.2,1829.0,41.8933]
[1746107709659,4.30103,1829.2,1829.1,3.3303]
[1746107710048,4.30103,1829.2,1829.1,4.42356]
[1746107710049,3.2078,1829.2,1829.1,4.42356]
[1746107710359,7.966,1829.6,1829.2,1.09318]
[1746107710555,1.09301,1829.6,1829.4,1.09309]
[1746107710860,3.2078,1829.5,1829.2,1.0932]
[1746107711159,3.2821,1829.5,1829.3,1.09312]
[1746107711359,1.09315,1829.3,1829.2,4.36467]
[1746107711654,1.09315,1829.3,1829.2,3.2715]
[1746107711860,1.09312,1829.4,1829.2,3.2715]
[1746107712060,1.09315,1829.3,1829.2,3.2715]
[1746107712261,6.4899,1829.5,1829.2,3.2715]
[1746107712262,1.09313,1829.4,1829.3,1.09315]
[1746107712462,4.30087,1829.5,1829.3,1.09315]
[1746107712669,4.30083,1829.5,1829.4,3.2715]
[1746107712858,3.2078,1829.5,1829.3,1.09312]
[1746107713061,3.2078,1829.5,1829.4,4.36459]
[1746107713260,4.30083,1829.5,1829.4,3.2715]
[1746107713456,3.2078,1829.5,1829.4,4.36459]
[1746107714462,4.61837701,1829.6,1829.4,4.36459]
[1746107714766,1.09299,1829.6,1829.4,4.36453]
[1746107714965,1.09294,1829.7,1829.4,3.2715]
[1746107715161,6.01423,1829.8,1829.4,3.2715]
[1746107715356,1.09303,1829.5,1829.4,3.2715]
[1746107715767,5.46582,1829.3,1828.5,3.4278]
[1746107715972,3.2078,1829.0,1828.5,6.9083]
[1746107716158,1.09355,1828.7,1828.6,40.8]
[1746107716461,4.30134,1828.7,1828.5,6.9083]
[1746107716660,3.3378,1828.7,1828.6,1.09356]
[1746107716867,1.09345,1828.8,1828.5,47.7083]
[1746107717070,1.0935,1828.7,1828.6,1.09353]
[1746107717363,4.3013,1828.7,1828.5,48.80187]
[1746107717574,1.09356,1828.6,1828.5,47.7083]
[1746107717770,4.48886,1828.6,1828.5,47.7083]
[1746107719169,3.2078,1828.7,1828.5,48.80189]
[1746107719373,7.69664,1828.7,1828.5,48.80189]
[1746107719569,7.69664,1828.7,1828.5,47.7083]
[1746107719767,3.2078,1828.7,1828.6,1.09356]
[1746107720067,1.09351,1828.7,1828.5,47.7083]
[1746107720262,1.09351,1828.7,1828.6,1.09354]
[1746107720458,1.09351,1828.7,1828.5,47.7083]
[1746107720767,3.2078,1829.0,1828.7,1.09346]
[1746107721069,1.09338,1828.9,1828.8,3.308]
[1746107721470,4.36618,1828.9,1828.8,3.308]
[1746107721769,1.09338,1828.9,1828.8,3.308]
[1746107722570,3.2078,1829.0,1828.9,1.09338]
[1746107722868,7.89139701,1829.3,1829.2,1.09321]
[1746107723259,6.79820701,1829.3,1829.2,1.09321]
[1746107723463,1.09323,1829.2,1829.1,1.09323]
[1746107723664,7.89138701,1829.3,1829.2,1.09321]
[1746107723867,1.09322,1829.2,1829.1,1.09322]
[1746107724069,4.36598,1829.3,1829.2,1.09321]
[1746107724268,6.4806,1829.3,1829.0,6.9195]
[1746107724469,4.30106,1829.1,1829.0,3.5344]
[1746107724863,4.29302734,1829.1,1829.0,3.5344]
[1746107725661,1.09332,1829.0,1828.9,3.3851]
[1746107725969,1.09338,1828.9,1828.8,1.09341]
[1746107726170,1.09344,1828.8,1828.7,8.15896]
[1746107726471,1.09356,1828.6,1828.5,45.27789]
[1746107726676,1.09356,1828.6,1828.5,48.80899]
[1746107726869,3.2078,1828.7,1828.6,1.09356]
[1746107727070,4.3013,1828.7,1828.6,1.09356]
[1746107727571,3.2078,1828.7,1828.6,1.09356]
[1746107727770,1.09356,1828.6,1828.5,45.42468]
[1746107728067,4.30134,1828.7,1828.6,1.09356]
[1746107728469,1.09356,1828.6,1828.5,44.3311]
[1746107728670,4.32066,1828.6,1828.5,40.8]
[1746107729370,4.32066,1828.6,1828.4,3.5311]
[1746107729371,2.73424,1828.4,1827.7,5.94298]
[1746107729574,3.2078,1828.2,1828.1,1.09386]
[1746107729876,4.3016,1828.2,1828.1,40.8]
[1746107730072,3.2078,1828.2,1828.1,41.89386]
[1746107730275,3.2078,1828.4,1828.2,1.09379]
[1746107730476,1.0938,1828.2,1828.1,40.8]
[1746107730770,7.61612,1828.4,1828.3,1.09374]
[1746107730969,7.61612,1828.4,1828.1,40.8]
[1746107730970,1.09377,1828.3,1828.2,1.09377]
[1746107731175,4.30153,1828.4,1828.3,1.09374]
[1746107731475,3.2078,1828.4,1828.3,1.09374]
[1746107731971,4.30148,1828.4,1828.3,1.09374]
[1746107732174,1.09375,1828.3,1828.2,1.09376]
[1746107732380,1.0938,1828.2,1828.1,40.8]
[1746107732670,1.0938,1828.2,1828.1,41.89386]
[1746107732872,3.2078,1828.4,1828.1,40.8]
[1746107733082,3.2078,1828.4,1828.3,1.09374]
[1746107733570,1.09374,1828.3,1828.2,3.3119]
[1746107733770,1.0938,1828.2,1828.1,40.8]
[1746107733971,1.0938,1828.2,1828.1,41.89386]
[1746107734268,3.2078,1828.4,1828.3,1.09374]
[1746107734473,5.94173,1828.6,1828.2,1.09376]
[1746107734673,3.5039,1828.5,1828.3,1.09373]
[1746107734971,4.30142,1828.6,1828.2,5.94232]
[1746107735181,3.2078,1828.6,1828.1,51.61794]
[1746107735370,1.0937,1828.4,1828.3,1.09371]
[1746107735672,1.0938,1828.2,1828.1,48.8833]
[1746107736074,1.0938,1828.2,1828.1,45.36316]
[1746107736268,1.0938,1828.2,1828.1,44.2693]
[1746107736572,3.2078,1828.4,1828.3,1.0937]
[1746107736770,8.20458,1828.0,1827.3,3.2078]
[1746107736970,3.2078,1827.6,1827.3,3.2078]
[1746107737273,3.4755,1827.9,1827.8,1.09404]
[1746107737576,3.2078,1828.3,1828.2,1.0938]
[1746107737773,4.30157,1828.3,1827.9,4.61298]
[1746107737977,3.2078,1828.3,1828.2,1.0938]
[1746107738169,4.30159,1828.3,1827.9,7.34789]
[1746107738371,3.2078,1828.3,1827.9,7.34789]
[1746107738573,3.2078,1828.3,1828.2,1.0938]
[1746107738880,1.0938,1828.2,1828.1,1.09384]
[1746107739080,4.30155,1828.3,1827.9,4.61298]
[1746107739379,8.6767,1828.3,1827.9,3.519]
[1746107739579,1.09398,1827.9,1827.8,8.88682]
[1746107739874,1.09398,1827.9,1827.8,3.2078]
[1746107740072,1.09404,1827.8,1827.7,3.4955]
[1746107740376,4.29244,1827.8,1827.7,3.4955]
[1746107740571,4.29244,1827.8,1827.4,1.09424]
[1746107740572,9.14134,1827.8,1827.4,1.09424]
[1746107740773,9.14134,1827.8,1827.3,40.8]
[1746107740774,2.73526,1827.7,1827.3,40.8]
[1746107740966,4.30208,1827.4,1827.3,41.89434]
[1746107741172,3.2078,1827.4,1827.3,41.89434]
[1746107741373,13.93753,1828.0,1827.3,43.53585]
[1746107741575,1.09409,1827.8,1827.4,2.73571]
[1746107741877,3.2248,1827.9,1827.8,1.09404]
[1746107742175,3.2078,1828.0,1827.8,1.09401]
[1746107742398,1.094,1827.9,1827.8,1.09403]
[1746107742676,1.09402,1827.9,1827.4,10.51531]
[1746107742978,3.2078,1828.0,1827.7,1.09407]
[1746107743173,4.30176,1828.0,1827.8,1.09404]
[1746107743379,3.2078,1828.0,1827.8,1.09404]
[1746107743579,1.09398,1827.9,1827.8,1.09404]
[1746107743778,4.31878,1827.9,1827.8,1.09404]
[1746107743981,4.31878,1827.9,1827.5,5.4711]
[1746107743982,4.30177,1828.0,1827.9,1.09398]
[1746107744176,1.60262,1828.0,1827.9,1.09398]
[1746107744372,3.2276,1829.1,1828.1,2.73459]
[1746107744575,3.2078,1828.4,1827.9,8.7928]
[1746107744783,3.2078,1828.2,1828.0,40.8]
[1746107745182,6.4354,1828.2,1828.0,40.8]
[1746107745580,3.2078,1828.3,1828.1,1.09386]
[1746107745883,6.4354,1828.3,1828.0,41.89388]
[1746107746084,7.52916,1828.3,1828.0,41.89388]
[1746107746379,3.2078,1828.1,1827.2,3.2078]
[1746107746686,3.2078,1828.1,1827.5,1.09422]
[1746107746687,3.2078,1827.6,1827.5,1.09422]
[1746107746881,3.2078,1827.6,1827.5,41.89422]
[1746107747082,4.32154,1828.0,1827.7,1.09408]
[1746107747285,3.2276,1828.0,1827.7,1.0941]
[1746107747477,4.32153,1828.0,1827.7,1.09405]
[1746107747673,3.2276,1828.0,1827.6,9.9443]
[1746107747881,3.2078,1827.7,1827.5,40.8]
[1746107748083,1.09416,1827.6,1827.5,40.8]
[1746107748282,1.09416,1827.6,1827.4,4.586]
[1746107748283,1.09422,1827.5,1827.4,3.2839]
[1746107748482,4.30202,1827.5,1827.4,3.2839]
[1746107748686,4.30202,1827.5,1827.4,44.0839]
[1746107749075,1.09422,1827.5,1827.4,44.0839]
[1746107749484,6.6301,1827.6,1827.4,44.0839]
[1746107749786,3.2078,1827.6,1827.4,44.0839]
[1746107749984,3.2078,1827.6,1827.5,1.09422]
[1746107750184,3.2078,1827.6,1827.5,4.37812]
[1746107750582,3.2078,1827.9,1827.8,1.09404]
[1746107750888,7.82690701,1828.4,1828.2,1.09378]
[1746107751282,7.82690701,1828.4,1828.3,4.39974]
[1746107751581,7.82690701,1828.4,1828.3,3.306]
[1746107751979,6.73320701,1828.4,1828.3,4.39974]
[1746107752183,3.52540701,1828.4,1828.3,4.39974]
[1746107753088,3.52540701,1828.4,1828.3,13.98574]